bitfinex-derivatives/quotes_SOLF0:USTF0_20260121
["timestamp","ask_amount","ask_price","bid_price","bid_amount"]
[1768966680765,1.88626486,127.71,127.65,2.82947392]
[1768966680964,1.88626486,127.69,127.65,2.82947392]
[1768966681370,5.31288957,127.69,127.62,2.82947392]
[1768966681764,3.42662471,127.68,127.63,2.82947392]
[1768966682067,5.31288957,127.67,127.61,2.82947392]
[1768966682872,5.31288957,127.67,127.61,9.88977392]
[1768966683067,5.31288957,127.67,127.62,2.82947392]
[1768966684374,5.31288957,127.67,127.58,2.82947392]
[1768966684375,1.88626486,127.63,127.58,2.82947392]
[1768966684776,3.42662471,127.64,127.58,2.82947392]
[1768966685872,3.42662471,127.64,127.58,9.89177392]
[1768966688374,3.42662471,127.64,127.59,2.82947392]
[1768966691582,1.88626486,127.63,127.59,2.82947392]
[1768966694878,1.88626486,127.63,127.57,2.82947392]
[1768966694879,5.31288957,127.63,127.57,2.82947392]
[1768966695185,3.42662471,127.62,127.57,2.82947392]
[1768966697886,1.88626486,127.61,127.55,2.83147994]
[1768966698184,5.35081797,127.64,127.55,2.83147994]
[1768966698484,3.46455311,127.63,127.55,2.83147994]
[1768966699878,3.46455311,127.63,127.57,9.89437994]
[1768966704890,5.35387689,127.63,127.57,9.89437994]
[1768966705089,3.46455311,127.63,127.57,9.89437994]
[1768966705389,406.1663,127.67,127.54,111.78082378]
[1768966705390,5.35387689,127.65,127.59,2.83147994]
[1768966705683,5.35387689,127.65,127.6,2.83147994]
[1768966705993,5.35387689,127.67,127.6,2.83147994]
[1768966706782,5.35387689,127.69,127.62,2.83147994]
[1768966707393,3.46455311,127.68,127.62,2.83147994]
[1768966707685,3.46455311,127.72,127.65,2.83147994]
[1768966708380,3.46455311,127.72,127.66,9.88937994]
[1768966710190,5.35387689,127.72,127.66,9.88937994]
[1768966712792,3.46455311,127.71,127.65,2.83147994]
[1768966713993,3.46455311,127.71,127.65,9.88997994]
[1768966717896,1.88932378,127.7,127.65,2.83147994]
[1768966718098,5.35387689,127.7,127.64,2.83147994]
[1768966723999,5.35387689,127.7,127.64,9.89047994]
[1768966727305,5.35387689,127.7,127.65,9.88874931]
[1768966727506,5.37986003,127.72,127.66,2.83024931]
[1768966727913,3.49053625,127.72,127.66,2.83024931]
[1768966728405,3.49053625,127.72,127.67,7.0574]
[1768966728606,5.37986003,127.72,127.66,2.83024931]
[1768966729807,5.37986003,127.72,127.66,9.88824931]
[1768966734813,3.49053625,127.71,127.64,9.88894931]
[1768966735121,3.49053625,127.71,127.65,2.83024931]
[1768966736010,3.49053625,127.71,127.65,9.88874931]
[1768966736722,3.49053625,127.69,127.61,2.83024931]
[1768966736909,3.49053625,127.69,127.62,2.83024931]
[1768966737915,3.49053625,127.69,127.63,9.88964931]
[1768966740024,1.88932378,127.68,127.63,9.88964931]
[1768966740821,1.88932378,127.68,127.63,2.83024931]
[1768966741417,5.37986003,127.68,127.63,2.83024931]
[1768966746423,3.49053625,127.68,127.63,2.83024931]
[1768966747221,3.49053625,127.68,127.62,7.0602]
[1768966747727,8.94572378,127.69,127.64,2.83024931]
[1768966747728,3.49053625,127.69,127.64,2.83024931]
[1768966749437,3.49053625,127.69,127.59,109.85]
[1768966749438,5.37986003,127.68,127.62,2.83024931]
[1768966750736,3.49053625,127.67,127.6,2.83024931]
[1768966751731,1.88932378,127.66,127.6,2.83024931]
[1768966751933,1.88932378,127.66,127.61,9.89104931]
[1768966757031,5.06727321,127.66,127.61,9.89104931]
[1768966757642,3.17794943,127.65,127.59,2.83209881]
[1768966757943,3.17794943,127.65,127.59,9.89349881]
[1768966759741,1.88932378,127.64,127.59,9.89349881]
[1768966760042,5.06727321,127.64,127.59,9.89349881]
[1768966760743,5.06727321,127.64,127.59,7.0614]
[1768966763846,5.06727321,127.64,127.59,9.89349881]
[1768966764853,3.17794943,127.64,127.59,9.89349881]
[1768966768368,5.06680571,127.63,127.57,9.89469881]
[1768966772164,3.17794943,127.62,127.57,9.89469881]
[1768966783674,3.17794943,127.62,127.57,2.83209881]
[1768966785164,3.17794943,127.62,127.57,9.89509881]
[1768966787674,3.17794943,127.62,127.57,2.83209881]
[1768966793784,3.43214652,127.64,127.58,2.83035726]
[1768966793979,10.74145371,127.66,127.58,2.83035726]
[1768966794179,12.63030999,127.66,127.58,2.83035726]
[1768966794490,5.3210028,127.66,127.6,2.83035726]
[1768966795287,3.43214652,127.65,127.6,2.83035726]
[1768966806379,3.43214652,127.67,127.61,2.83035726]
[1768966806688,10.74145371,127.69,127.62,2.83035726]
[1768966806892,3.43214652,127.69,127.62,2.83035726]
[1768966807892,3.43214652,127.69,127.63,2.83035726]
[1768966811592,290.24515628,127.7,127.63,9.88985726]
[1768966811793,293.6773028,127.7,127.64,2.83035726]
[1768966813790,3.43214652,127.69,127.64,2.83035726]
[1768966816997,10.48854652,127.69,127.64,2.83035726]
[1768966824906,281.3,127.7,127.64,2.83035726]
[1768966825803,284.62547116,127.7,127.65,9.89244998]
[1768966826604,109.712,127.76,127.67,2.83384998]
[1768966826605,3.32547116,127.73,127.67,2.83384998]
[1768966826808,5.21432744,127.73,127.67,2.83384998]
[1768966827009,3.32547116,127.73,127.67,2.83384998]
[1768966827912,3.32547116,127.73,127.67,9.89104998]
[1768966831117,3.32547116,127.73,127.67,2.83384998]
[1768966833917,3.32547116,127.73,127.67,9.89124998]
[1768966835624,1.88626068,127.72,127.67,9.89124998]
[1768966839125,5.21173184,127.72,127.67,9.89124998]
[1768966839430,5.21173184,127.7,127.65,9.89194998]
[1768966843325,1.88626068,127.7,127.66,2.83384998]
[1768966843525,3.32547116,127.78,127.71,2.83384998]
[1768966844020,5.21173184,127.78,127.72,2.83384998]
[1768966844732,109.6572,127.82,127.71,7.055]
[1768966844733,5.21173184,127.76,127.71,7.055]
[1768966845229,5.21173184,127.76,127.71,9.88885754]
[1768966846222,1.88626068,127.74,127.69,9.89005754]
[1768966847429,1.88626068,127.74,127.7,2.83385754]
[1768966848125,3.27603954,127.78,127.72,2.83385754]
[1768966848429,5.16230022,127.77,127.72,2.83385754]
[1768966848732,5.16230022,127.77,127.7,2.83385754]
[1768966849130,3.27603954,127.77,127.7,2.83385754]
[1768966849331,1.88626068,127.76,127.71,9.88895754]
[1768966849632,1.88626068,127.76,127.71,2.83385754]
[1768966850324,5.16230022,127.76,127.71,2.83385754]
[1768966851233,3.27603954,127.78,127.71,2.83385754]
[1768966851421,1.88626068,127.77,127.71,2.83385754]
[1768966851728,5.16230022,127.77,127.71,2.83385754]
[1768966852730,3.27603954,127.76,127.71,2.83385754]
[1768966856132,3.27603954,127.74,127.69,2.83385754]
[1768966860834,1.88626068,127.73,127.68,7.0565]
[1768966861034,3.27603954,127.74,127.69,2.83385754]
[1768966861539,1.88626068,127.75,127.7,2.83385754]
[1768966861740,5.16230022,127.75,127.7,2.83385754]
[1768966862842,5.16230022,127.75,127.7,9.88965754]
[1768966866047,3.27603954,127.75,127.7,9.88965754]
[1768966870845,5.16230022,127.74,127.68,9.89025754]
[1768966872646,3.27603954,127.73,127.68,9.89025754]
[1768966872950,3.27603954,127.71,127.66,2.83385754]
[1768966873745,3.27603954,127.71,127.66,9.89165754]
[1768966873943,3.27603954,127.71,127.66,2.83385754]
[1768966875752,5.12569919,127.7,127.64,112.64022897]
[1768966876148,5.12569919,127.7,127.66,7.058]
[1768966876346,5.12569919,127.7,127.64,2.83332897]
[1768966876559,1.88626068,127.68,127.64,2.83332897]
[1768966876846,1.88626068,127.68,127.64,7.0589]
[1768966878251,5.12569919,127.68,127.64,7.0589]
[1768966878646,5.12569919,127.68,127.62,2.83332897]
[1768966879852,5.12569919,127.68,127.63,7.0597]
[1768966886561,5.12569919,127.68,127.63,9.89302897]
[1768966888853,3.23943851,127.68,127.63,9.89302897]
[1768966896873,3.23943851,127.66,127.61,9.89372897]
[1768966899762,3.23943851,127.66,127.59,2.83332897]
[1768966900267,3.23943851,127.66,127.6,7.0613]
[1768966900461,8.94523006,127.67,127.59,2.83332897]
[1768966900462,3.23943851,127.64,127.59,2.83332897]
[1768966901770,3.23943851,127.64,127.59,9.89522897]
[1768966902864,3.23943851,127.64,127.59,2.83332897]
[1768966905267,3.23943851,127.64,127.58,7.0623]
[1768966906968,3.23943851,127.64,127.58,9.89650966]
[1768966910276,3.23943851,127.64,127.58,2.83420966]
[1768966920779,7.0587,127.65,127.58,2.83420966]
[1768966920983,10.28448238,127.69,127.61,2.83420966]
[1768966921475,10.28448238,127.69,127.6,8.94883006]
[1768966921476,3.22768238,127.69,127.64,2.83420966]
[1768966923178,3.22768238,127.71,127.64,2.83420966]
[1768966923382,3.22768238,127.71,127.65,2.83420966]
[1768966923973,3.22768238,127.7,127.63,2.83420966]
[1768966925390,299.64768238,127.73,127.64,4.72183972]
[1768966925594,299.64768238,127.73,127.65,2.83420966]
[1768966925887,299.64768238,127.73,127.65,9.89250966]
[1768966926092,299.64768238,127.73,127.66,2.83420966]
[1768966926589,3.22768238,127.73,127.66,2.83420966]
[1768966930396,3.22768238,127.73,127.67,2.83420966]
[1768966931397,3.22768238,127.73,127.67,9.89150966]
[1768966931892,3.22768238,127.72,127.65,9.89250966]
[1768966932098,3.22768238,127.72,127.65,2.83420966]
[1768966932289,3.22768238,127.7,127.65,2.83420966]
[1768966935495,3.22768238,127.7,127.63,2.83575874]
[1768966936705,5.32409914,127.69,127.63,2.83575874]
[1768966938596,3.43646908,127.68,127.63,2.83575874]
[1768966942502,3.43646908,127.68,127.61,2.83575874]
[1768966942803,5.32409914,127.67,127.61,2.83575874]
[1768966947004,12.38159914,127.67,127.61,2.83575874]
[1768966948905,10.49396908,127.67,127.61,2.83575874]
[1768966951012,3.43646908,127.66,127.61,2.83575874]
[1768966953611,3.43646908,127.65,127.6,7.0609]
[1768966954009,3.43646908,127.65,127.59,2.83575874]
[1768966955105,3.43646908,127.65,127.6,9.89705874]
[1768966960715,3.43646908,127.65,127.6,2.83575874]
[1768966961906,3.43646908,127.65,127.6,9.89705874]
[1768966966921,3.43646908,127.65,127.6,2.83575874]
[1768966977637,8.94596704,127.66,127.6,2.83575874]
[1768966977821,1.88796704,127.66,127.6,2.83575874]
[1768966979026,5.13116543,127.66,127.6,2.83575874]
[1768966980929,3.24319839,127.66,127.6,2.83575874]
[1768966982133,3.24319839,127.66,127.6,9.89695874]
[1768966989234,3.24319839,127.66,127.6,7.0612]
[1768966989443,5.13116543,127.65,127.6,9.89793296]
[1768966990043,1.88796704,127.65,127.61,9.89753296]
[1768966994844,3.24319839,127.66,127.61,9.89753296]
[1768966995041,5.13116543,127.66,127.61,9.89753296]
[1768967000450,7.29491896,127.67,127.63,2.84042276]
[1768967000652,12.59523995,127.68,127.63,2.84042276]
[1768967001369,5.30032099,127.68,127.63,9.90012276]
[1768967002542,5.30032099,127.68,127.64,7.059]
[1768967003355,5.30032099,127.68,127.63,2.84042276]
[1768967004056,5.30032099,127.68,127.63,9.90002276]
[1768967006353,5.30032099,127.7,127.65,2.84042276]
[1768967006541,7.29491896,127.72,127.65,2.84042276]
[1768967006740,10.70727291,127.73,127.66,2.84042276]
[1768967007253,3.41235395,127.73,127.66,2.84042276]
[1768967007453,3.41235395,127.73,127.67,9.89782276]
[1768967008251,3.41235395,127.73,127.68,2.84042276]
[1768967009451,3.41235395,127.75,127.68,2.84042276]
[1768967009757,5.30032099,127.76,127.7,2.84042276]
[1768967009957,3.41235395,127.75,127.7,2.84042276]
[1768967010856,5.29816819,127.75,127.7,2.84042276]
[1768967011641,3.41235395,127.74,127.68,2.84042276]
[1768967011845,3.41235395,127.76,127.68,2.84042276]
[1768967012047,3.41235395,127.75,127.68,2.84042276]
[1768967012744,3.41235395,127.75,127.68,9.89712276]
[1768967012944,3.41235395,127.75,127.69,2.84042276]
[1768967014550,5.29816819,127.77,127.7,2.84042276]
[1768967014945,5.29816819,127.77,127.7,9.89602276]
[1768967015150,5.29816819,127.77,127.71,2.84042276]
[1768967017354,3.41235395,127.76,127.7,7.0556]
[1768967017857,3.41235395,127.76,127.7,9.89602276]
[1768967018358,1.88581424,127.75,127.7,9.89602276]
[1768967019054,5.29816819,127.75,127.68,9.89702276]
[1768967019457,5.29816819,127.75,127.69,2.84042276]
[1768967022662,12.35136819,127.75,127.69,2.84042276]
[1768967022867,12.35136819,127.75,127.65,111.68421424]
[1768967022868,1.88581424,127.73,127.67,2.84042276]
[1768967023066,5.29816819,127.73,127.67,2.84042276]
[1768967023860,12.35246819,127.73,127.67,2.84042276]
[1768967025061,3.41235395,127.72,127.67,2.84042276]
[1768967025759,10.46715395,127.72,127.67,2.84042276]
[1768967028262,10.46715395,127.72,127.65,9.89515791]
[1768967028263,5.37583577,127.71,127.65,9.89515791]
[1768967028462,5.37583577,127.71,127.66,2.83705791]
[1768967028858,116.98811896,127.78,127.7,0.95124367]
[1768967028859,3.49002153,127.78,127.7,0.95124367]
[1768967029168,5.37583577,127.78,127.7,0.95124367]
[1768967029867,12.42773577,127.78,127.71,0.95124367]
[1768967030068,3.49002153,127.77,127.71,0.95124367]
[1768967031767,10.54202153,127.77,127.71,0.95124367]
[1768967032168,1.88581424,127.76,127.71,0.95124367]
[1768967035173,5.37583577,127.76,127.7,7.0557]
[1768967035477,5.37583577,127.76,127.7,8.00694367]
[1768967036379,12.42833577,127.76,127.7,0.95124367]
[1768967040081,3.49002153,127.75,127.7,0.95124367]
[1768967044088,3.49002153,127.74,127.69,7.0563]
[1768967044688,3.49002153,127.74,127.69,8.00754367]
[1768967045187,3.49002153,127.74,127.69,0.95124367]
[1768967047586,3.49002153,127.76,127.7,0.95124367]
[1768967048787,3.49002153,127.76,127.7,8.00704367]
[1768967049285,3.49002153,127.76,127.71,7.0552]
[1768967049593,3.49002153,127.76,127.71,8.00644367]
[1768967051695,3.49002153,127.76,127.71,0.95124367]
[1768967051995,3.49002153,127.76,127.69,0.95124367]
[1768967052295,5.37583577,127.75,127.69,0.95124367]
[1768967053993,296.14,127.81,127.71,109.7462]
[1768967054197,3.49002153,127.85,127.77,109.6965]
[1768967054399,3.49002153,127.85,127.78,7.0511]
[1768967054600,3.49002153,127.85,127.78,1.88581424]
[1768967054995,3.49002153,127.85,127.78,8.93681424]
[1768967055502,3.49002153,127.85,127.76,111.59071424]
[1768967055699,5.37583577,127.85,127.76,111.59071424]
[1768967056196,3.18538689,127.84,127.76,111.59071424]
[1768967056397,5.07120113,127.82,127.75,7.0529]
[1768967056599,3.18538689,127.87,127.77,111.58101424]
[1768967056798,3.18538689,127.86,127.77,1.88581424]
[1768967056994,3.18538689,127.84,127.76,116.7584]
[1768967057187,3.18538689,127.84,127.76,109.7061]
[1768967057494,3.18538689,127.84,127.77,109.6978]
[1768967057694,3.18538689,127.84,127.77,111.58361424]
[1768967057894,3.18538689,127.84,127.78,7.0511]
[1768967058899,3.18538689,127.84,127.77,1.88581424]
[1768967059491,3.18538689,127.86,127.78,7.0509]
[1768967061303,5.07120113,127.85,127.78,7.0509]
[1768967061502,3.18538689,127.85,127.78,7.0509]
[1768967070194,3.18538689,127.85,127.77,1.88581424]
[1768967070404,3.18538689,127.83,127.76,7.0521]
[1768967070902,5.06870012,127.83,127.76,7.0521]
[1768967071103,12.11750012,127.83,127.75,1.88331323]
[1768967071406,3.18538689,127.82,127.75,1.88331323]
[1768967071704,3.18538689,127.82,127.74,7.0532]
[1768967072796,10.23488689,127.82,127.74,7.0532]
[1768967072993,3.18538689,127.81,127.74,7.0532]
[1768967073404,3.18538689,127.8,127.74,7.0532]
[1768967075504,3.18538689,127.8,127.73,1.88331323]
[1768967076803,3.18538689,127.8,127.74,7.0534]
[1768967078704,3.18538689,127.8,127.75,7.0529]
[1768967080712,5.06870012,127.8,127.75,7.0529]
[1768967081912,5.06870012,127.8,127.76,7.0523]
[1768967083410,3.18538689,127.79,127.73,109.728]
[1768967083804,8.689e-05,127.79,127.73,109.728]
[1768967084012,8.689e-05,127.79,127.76,7.0524]
[1768967085211,8.689e-05,127.79,127.74,7.0534]
[1768967085609,8.689e-05,127.79,127.73,109.728]
[1768967086809,8.689e-05,127.79,127.75,7.053]
[1768967088212,5.23628897,127.81,127.76,7.0522]
[1768967088406,3.35297574,127.81,127.76,7.0522]
[1768967090504,3.35297574,127.8,127.76,7.0522]
[1768967093517,1.88331323,127.81,127.76,7.0522]
[1768967093716,5.23628897,127.81,127.76,7.0522]
[1768967095019,5.23628897,127.81,127.77,7.0519]
[1768967097327,3.35297574,127.8,127.77,7.0519]
[1768967097819,3.35297574,127.8,127.74,109.7231]
[1768967098919,3.35297574,127.8,127.76,7.0525]
[1768967100215,1.88331323,127.81,127.72,109.7361]
[1768967100216,3.35297574,127.78,127.72,109.7361]
[1768967100416,3.35297574,127.78,127.71,1.88331323]
[1768967101022,3.35297574,127.78,127.74,7.0534]
[1768967106420,3.35297574,127.76,127.72,7.0542]
[1768967106620,3.35297574,127.76,127.7,109.7532]
[1768967107726,3.35297574,127.76,127.69,1.88331323]
[1768967107917,3.35297574,127.76,127.69,111.64731323]
[1768967108922,3.35297574,127.76,127.72,7.0544]
[1768967112422,5.23628897,127.75,127.7,7.0555]
[1768967112817,3.35297574,127.74,127.68,7.0565]
[1768967113826,1.88331323,127.73,127.68,7.0565]
[1768967114033,5.23628897,127.73,127.68,7.0565]
[1768967115724,3.39946695,127.72,127.66,7.0576]
[1768967117019,1.88331323,127.71,127.66,7.0576]
[1768967117220,5.28278018,127.71,127.66,7.0576]
[1768967119735,1.88331323,127.69,127.64,7.0587]
[1768967120031,5.28278018,127.69,127.64,7.0587]
[1768967124937,3.39946695,127.68,127.64,7.0587]
[1768967125438,3.39946695,127.68,127.62,7.06]
[1768967125642,1.88331323,127.67,127.62,7.06]
[1768967126543,5.28278018,127.67,127.62,7.06]
[1768967128140,1.88331323,127.67,127.62,7.06]
[1768967128442,3.39946695,127.69,127.63,7.0596]
[1768967128839,5.28278018,127.68,127.63,7.0596]
[1768967130851,5.28749566,127.68,127.63,7.0596]
[1768967131735,3.39946695,127.67,127.61,7.0604]
[1768967132950,3.39946695,127.67,127.62,7.0602]
[1768967135854,3.39946695,127.67,127.6,7.0609]
[1768967136343,3.39946695,127.67,127.61,7.0607]
[1768967137552,5.28749566,127.66,127.58,111.74642871]
[1768967138544,3.39946695,127.65,127.58,111.74642871]
[1768967138851,3.39946695,127.65,127.6,7.0613]
[1768967139350,1.88802871,127.64,127.56,1.88802871]
[1768967139551,3.39946695,127.63,127.54,111.77602871]
[1768967140050,3.39946695,127.66,127.56,111.76622871]
[1768967140260,5.28749566,127.66,127.56,111.76622871]
[1768967140445,3.39946695,127.65,127.56,111.76622871]
[1768967140755,3.39946695,127.63,127.56,111.76622871]
[1768967141751,3.39946695,127.63,127.59,7.0617]
[1768967144746,3.39946695,127.63,127.56,111.76622871]
[1768967145848,3.39946695,127.63,127.58,7.0623]
[1768967148658,5.22178001,127.65,127.58,7.0623]
[1768967148857,5.22178001,127.65,127.59,7.0616]
[1768967158159,3.3337513,127.64,127.59,7.0616]
[1768967158757,3.3337513,127.62,127.55,111.76932871]
[1768967159767,3.3337513,127.62,127.58,7.0624]
[1768967161869,3.3337513,127.62,127.55,111.76932871]
[1768967161870,3.3337513,127.62,127.55,109.8813]
[1768967162867,3.3337513,127.62,127.57,7.0625]
[1768967163764,3.3337513,127.62,127.58,7.0624]
[1768967167074,3.3337513,127.64,127.59,7.0617]
[1768967170671,3.3337513,127.64,127.57,7.0625]
[1768967172471,3.3337513,127.64,127.58,7.0624]
[1768967179777,1.88802871,127.65,127.59,7.0618]
[1768967179969,3.23161782,127.66,127.59,7.0618]
[1768967180971,3.23161782,127.66,127.58,1.88802871]
[1768967180972,3.23161782,127.66,127.6,7.0613]
[1768967181674,3.23161782,127.66,127.58,8.94992871]
[1768967181878,3.23161782,127.66,127.58,1.88802871]
[1768967182777,3.23161782,127.66,127.59,7.0619]
[1768967185480,3.23161782,127.66,127.58,1.88802871]
[1768967185679,3.23161782,127.67,127.6,7.0613]
[1768967188882,3.23161782,127.66,127.6,7.0613]
[1768967215395,3.23161782,127.66,127.57,109.8644]
[1768967215396,3.2925382,127.68,127.61,1.88851259]
[1768967216896,3.2925382,127.68,127.62,7.0602]
[1768967222604,3.2925382,127.68,127.58,109.8537]
[1768967222803,3.2925382,127.67,127.58,1.88851259]
[1768967223804,3.2925382,127.67,127.59,7.0614]
[1768967224003,3.2925382,127.67,127.58,1.88851259]
[1768967224504,10.3500382,127.67,127.6,7.061]
[1768967225206,3.2925382,127.66,127.6,7.061]
[1768967225402,3.2925382,127.65,127.59,7.0619]
[1768967229912,3.2925382,127.65,127.6,7.0612]
[1768967233415,3.2925382,127.65,127.59,7.0619]
[1768967233621,1.88851259,127.66,127.55,109.8822]
[1768967233622,3.2925382,127.63,127.55,109.8822]
[1768967234820,3.2925382,127.63,127.58,7.0624]
[1768967237921,1.88851259,127.62,127.57,7.0629]
[1768967238118,3.43854192,127.61,127.57,7.0629]
[1768967238320,1.88851259,127.62,127.57,7.0629]
[1768967238925,1.88851259,127.62,127.55,7.0637]
[1768967239926,5.32705451,127.62,127.55,7.0637]
[1768967245928,7.0597,127.63,127.56,7.0634]
[1768967246833,10.49824192,127.63,127.56,7.0634]
[1768967251434,3.43854192,127.63,127.56,7.0634]
[1768967253844,3.43854192,127.63,127.57,7.0629]
[1768967254944,5.32801532,127.63,127.57,7.0629]
[1768967262149,3.43854192,127.62,127.57,7.0629]
[1768967263046,3.43854192,127.67,127.56,111.7674734]
[1768967263246,5.32801532,127.67,127.58,1.8894734]
[1768967263450,3.43854192,127.69,127.6,1.8894734]
[1768967263750,3.43854192,127.69,127.62,1.8894734]
[1768967264946,3.43854192,127.69,127.62,8.9494734]
[1768967265846,3.27081988,127.68,127.6,8.9503734]
[1768967266154,3.27081988,127.67,127.6,8.9503734]
[1768967268150,7.33623381,127.71,127.58,109.8563]
[1768967268351,3.27081988,127.71,127.64,8.9485734]
[1768967275056,3.27081988,127.71,127.65,7.0585]
[1768967275456,3.27081988,127.71,127.64,1.8894734]
[1768967275658,3.27081988,127.71,127.64,8.9484734]
[1768967279054,3.27081988,127.7,127.64,8.9484734]
[1768967280058,3.27081988,127.7,127.64,7.059]
[1768967280963,3.27081988,127.7,127.62,8.9492734]
[1768967282162,3.27081988,127.7,127.63,7.0596]
[1768967284164,3.27081988,127.69,127.63,7.0596]
[1768967286661,3.27081988,127.68,127.61,7.0604]
[1768967287566,3.27081988,127.68,127.6,1.8894734]
[1768967287567,3.27081988,127.67,127.6,1.8894734]
[1768967287773,5.16029328,127.67,127.58,111.7479734]
[1768967288065,3.27081988,127.66,127.58,111.7479734]
[1768967288777,3.27081988,127.66,127.6,7.0613]
[1768967289582,3.27081988,127.66,127.58,1.8894734]
[1768967290783,3.27081988,127.66,127.59,7.0619]
[1768967293381,1.8894734,127.67,127.58,111.7463734]
[1768967293884,5.16029328,127.67,127.58,111.7463734]
[1768967294883,5.16029328,127.67,127.61,7.0606]
[1768967298288,3.37828262,127.66,127.61,7.0606]
[1768967301487,1.8894734,127.67,127.61,7.0606]
[1768967301889,5.26775602,127.67,127.61,7.0606]
[1768967309998,5.26775602,127.67,127.62,7.0602]
[1768967310295,1.8894734,127.67,127.62,7.0602]
[1768967314900,5.26631111,127.68,127.62,7.0602]
[1768967319706,5.26631111,127.68,127.63,7.0594]
[1768967320000,5.26631111,127.68,127.6,109.8415]
[1768967320001,5.26631111,127.7,127.62,109.825]
[1768967320908,5.26631111,127.7,127.65,7.0584]
[1768967324211,3.37828262,127.7,127.65,7.0584]
[1768967325502,3.28615595,127.72,127.65,1.88802849]
[1768967326102,5.17418444,127.72,127.64,109.8062]
[1768967327812,5.17418444,127.72,127.66,7.0579]
[1768967330416,3.28615595,127.72,127.66,7.0579]
[1768967330606,3.28615595,127.72,127.67,7.0573]
[1768967334516,3.28615595,127.72,127.68,7.0568]
[1768967340514,5.17418444,127.74,127.68,7.0568]
[1768967341717,3.28615595,127.73,127.68,7.0568]
[1768967353518,3.28615595,127.73,127.66,8.94572849]
[1768967353724,3.28615595,127.71,127.64,1.88802849]
[1768967354832,3.28615595,127.71,127.65,7.0581]
[1768967355433,3.28615595,127.71,127.67,7.0574]
[1768967355733,5.34339644,127.74,127.64,111.69392849]
[1768967355934,5.34339644,127.74,127.66,1.88802849]
[1768967356230,5.34339644,127.74,127.68,7.0569]
[1768967358937,3.45536795,127.73,127.68,7.0569]
[1768967362451,3.45536795,127.73,127.69,7.0563]
[1768967362751,1.88802849,127.72,127.64,111.69392849]
[1768967362945,3.45536795,127.73,127.65,109.8007]
[1768967363844,3.45536795,127.75,127.66,111.67622849]
[1768967364046,3.45536795,127.75,127.68,1.88802849]
[1768967364851,3.45536795,127.75,127.69,7.0564]
[1768967365853,1.88802849,127.76,127.7,7.0558]
[1768967366054,5.34339644,127.76,127.7,7.0558]
[1768967367941,3.45536795,127.75,127.7,7.0558]
[1768967371059,3.45536795,127.73,127.68,7.0566]
[1768967384268,3.45536795,127.73,127.65,1.88610183]
[1768967384462,3.45536795,127.71,127.63,1.88610183]
[1768967385773,3.45536795,127.71,127.65,7.0581]
[1768967386377,3.36757881,127.7,127.63,1.88610183]
[1768967387981,5.25368064,127.7,127.64,7.0589]
[1768967390382,3.36757881,127.72,127.64,1.88610183]
[1768967391883,3.36757881,127.72,127.66,7.0579]
[1768967396676,3.36757881,127.72,127.64,1.88610183]
[1768967396677,3.36757881,127.72,127.64,8.94490183]
[1768967397385,3.36757881,127.72,127.65,7.0585]
[1768967399084,3.36757881,127.72,127.66,7.0579]
[1768967400484,1.88610183,127.73,127.67,7.0574]
[1768967400689,5.25368064,127.74,127.67,7.0574]
[1768967400889,3.36757881,127.74,127.66,1.88610183]
[1768967401190,1.88610183,127.75,127.69,7.0562]
[1768967401378,5.25368064,127.75,127.69,7.0562]
[1768967401575,7.31136791,127.78,127.7,7.0557]
[1768967401879,3.36757881,127.77,127.68,111.65440183]
[1768967402981,3.36757881,127.77,127.71,7.0549]
[1768967406091,3.36757881,127.75,127.69,7.056]
[1768967406593,3.36757881,127.75,127.67,7.057]
[1768967406888,5.25368064,127.74,127.67,7.057]
[1768967407188,3.36757881,127.73,127.67,7.057]
[1768967407594,3.36757881,127.73,127.64,1.88610183]
[1768967408884,3.36757881,127.73,127.66,7.0579]
[1768967410192,3.36757881,127.72,127.64,8.94480183]
[1768967410387,3.36757881,127.71,127.64,8.94480183]
[1768967410785,3.36757881,127.71,127.65,7.0585]
[1768967412795,3.36757881,127.69,127.63,7.0595]
[1768967413494,3.36757881,127.67,127.61,7.0605]
[1768967416487,1.88610183,127.66,127.61,7.0605]
[1768967420083,3.36757881,127.67,127.61,7.0605]
[1768967426399,1.88610183,127.68,127.62,7.0601]
[1768967427111,5.33194737,127.68,127.62,7.0601]
[1768967429611,1.88610183,127.68,127.63,7.0595]
[1768967429808,5.33194737,127.7,127.63,7.0595]
[1768967430307,1.88610183,127.68,127.63,7.0595]
[1768967430500,3.44584554,127.67,127.61,7.0603]
[1768967431003,3.44584554,127.67,127.62,7.0602]
[1768967443628,3.44584554,127.67,127.59,1.88784698]
[1768967444928,3.44584554,127.67,127.61,7.0608]
[1768967450626,10.50334554,127.67,127.61,7.0608]
[1768967457628,3.43332004,127.65,127.6,7.0613]
[1768967457832,3.43332004,127.65,127.56,298.20784698]
[1768967458835,10.49202004,127.65,127.59,7.0619]
[1768967460038,1.88784698,127.66,127.6,7.0613]